Cogmind - Beta 16 @@@ ROGUE MODE // 2025.12.09 @ 16:17:00 Player: omewwes Result: Destroyed by as-23494 with Assembled Blade Performance ------------- Evolutions (0) 0 Regions Visited (2) 400 Robots Destroyed (4) 20 Value Destroyed (117) 117 Prototype IDs (0) 0 Alien Tech Used (0) 0 Bonus (0) 0 TOTAL SCORE: 537 Bonus ------- None Cogmind --------- Core Integrity 0/250 Matter 300/300 Energy 250/250 System Corruption 5% Temperature Cool (0) Movement Walking (190) Ox1 Location -10/Mines Parts ------- > --- POWER (1) -------- Ion Engine > --- PROPULSION (2) --- Aluminum Leg > --- UTILITY (2) ------ Medium Storage Unit > --- WEAPON (2) ------- (None) > --- INVENTORY (10) --- Ion Engine Aluminum Leg Small Storage Unit Mining Laser Peak State ------------ > --- POWER ------------ Ion Engine > --- PROPULSION ------- Aluminum Leg Aluminum Leg > --- UTILITY ---------- Small Storage Unit Propulsion Shielding > --- WEAPON ----------- Assault Rifle Light Assault Rifle > --- INVENTORY -------- Ion Engine Aluminum Leg Aluminum Leg Mining Laser [Rating: 7] Favorites ----------- Power Ion Engine Engine Ion Engine Propulsion Aluminum Leg Leg Aluminum Leg Utility Small Storage Unit Storage Small Storage Unit Protection Propulsion Shielding Weapon Light Assault Rifle Ballistic Gun Light Assault Rifle Build | -11 -10 -10 ------- Run | Yrd Mat Min Slots Evolved . | . . . Power . | . . . Propulsion . | . . . Utility . | . . . Weapon . | . . . Parts Attached 11 | 6 3 2 Power 3 | 1 2 . Engine 3 | 1 2 . Core . | . . . Reactor . | . . . Propulsion 3 | 2 1 . Treads . | . . . Leg 3 | 2 1 . Wheel . | . . . Hover . | . . . Flight . | . . . Utility 3 | 1 . 2 Device . | . . . Storage 2 | 1 . 1 Processor . | . . . Hackware . | . . . Protection 1 | . . 1 Artifact . | . . . Weapon 2 | 2 . . Energy Gun . | . . . Energy Cannon . | . . . Ballistic Gun 2 | 2 . . Ballistic Cannon . | . . . Launcher . | . . . Special Weapon . | . . . Impact Weapon . | . . . Slashing Weapon . | . . . Piercing Weapon . | . . . Special Melee Weapon . | . . . Unidentified Prototypes . | . . . Parts Lost 5 | . . 5 Power . | . . . Propulsion 2 | . . 2 Utility 1 | . . 1 Weapon 2 | . . 2 Highest Loss Streak 4 | . . 4 To Critical Strikes . | . . . Average Backups 2 | . 1 4 Power . | . 1 1 Propulsion 1 | . . 1 Utility . | . . . Weapon . | . . 1 Tool/Special . | . . . Unused Backups 3 | . 1 2 Power 1 | . 1 . Propulsion 1 | . . 1 Utility . | . . . Weapon 1 | . . 1 Tool/Special . | . . . Average Slot Usage (%) 85 | . 85 85 Engine 14 | . 14 14 Leg 28 | . 28 28 Storage 14 | . 14 14 Protection 5 | . . 10 Ballistic Gun 23 | . 28 18 Peak Build Rating 7 | 6 6 7 Average Rating 5 | 4 6 5 On Entrance 4 | . 6 6 Avg Prop Armor Cover (%) . | . . . Naked Turns . | . . . Heaviest Build 19 | 11 13 19 Greatest Support 20 | 20 20 20 Greatest Overweight (x) . | . . . Average Overweight (x) . | . . . Largest Inventory Capacity 10 | 8 8 10 Average Capacity 8 | 7 8 9 Most Carried 5 | 1 4 5 Average Carried 2 | . 1 4 Final Capacity 10 | 8 8 10 Final Carried 4 | 1 4 4 Class Distribution -------------------- 100% | Mutant Dominant Class ---------------- Mutant | -10/Materials Mutant | -10/Mines Resources | -11 -10 -10 ----------- Run | Yrd Mat Min Matter Collected 397 | 260 102 35 Remotely . | . . . Salvage Created 209 | . 193 16 Parts 10 | . 10 . Haulers Intercepted 1 | . 1 . Recyclers Shooed . | . . . Parts Field Recycled . | . . . Retrieved Matter . | . . . Parts Self-Destructed . | . . . Prevented . | . . . Parts Restored . | . . . Kills | -11 -10 -10 ------- Run | Yrd Mat Min Combat Hostiles Destroyed 4 | . 3 1 Guns 4 | . 3 1 Classes Destroyed 3 | . 2 1 Hauler 1 | . 1 . Grunt 3 | . 3 . Assembled 1 | . . 1 Best Kill Streak 2 | . 2 1 Combat Bots Only 2 | . 2 1 Max Kills in Single Turn 1 | . 1 1 Gunslinging . | . . . Exploded . | . . . Melee . | . . . Uniques/NPCs Destroyed . | . . . Combat | -11 -10 -10 -------- Run | Yrd Mat Min Hostile Shots Fired 84 | . 13 71 Missed 31 | . 3 28 Hits 53 | . 10 43 Melee 9 | . . 9 Projectile 44 | . 10 34 Critical Strikes 2 | . 2 . Damage Taken 856 | . 187 669 Core 266 | . 25 241 Absorbed by Shields . | . . . Redirected to Shielding 27 | . . 27 Core Remaining (%) 100 | 100 . . Volleys Fired 21 | . 18 3 Largest 2 | . 2 2 Hottest 40 | . 40 40 Shots Fired 41 | . 36 5 Gun 41 | . 36 5 Cannon . | . . . Launcher . | . . . Special . | . . . Kinetic 41 | . 36 5 Thermal . | . . . Explosive . | . . . Electromagnetic . | . . . Robot Hit Streak 14 | . 14 7 Robot Miss Streak 4 | . 4 1 Penetration Max . | . . . Secondary Targets . | . . . Shots Hit Robots 27 | . 24 3 Core Hits 12 | . 10 2 Critical Kills . | . . . Critical Parts Destroyed 1 | . 1 . Critical Strikes 1 | . 1 . Destroy 1 | . 1 . Melee Attacks . | . . . Impact . | . . . Slashing . | . . . Piercing . | . . . Sneak Attacks . | . . . Combat Hostiles . | . . . Follow-up Attacks . | . . . Damage Inflicted 278 | . 249 29 Guns 276 | . 249 27 Cannons . | . . . Explosions . | . . . Melee . | . . . Ramming 2 | . . 2 Kinetic 276 | . 249 27 Thermal . | . . . Explosive . | . . . Electromagnetic . | . . . Impact . | . . . Slashing . | . . . Piercing . | . . . Highest Corruption 5 | . . 5 Average Corruption 5 | . . 5 Corruption Purged . | . . . Corruption Blocked . | . . . Effects 1 | . . 1 Matter Fused 1 | . . 1 Overload Shots . | . . . Overflow Damage . | . . . Projectiles . | . . . Explosions . | . . . Melee . | . . . Knockbacks . | . . . Impact . | . . . Kinetic . | . . . Secondary . | . . . Self-Inflicted Damage . | . . . Shots . | . . . Rammed . | . . . Targets Rammed 2 | . . 2 Kicked 2 | . . 2 Crushed . | . . . Highest Temperature 43 | . 43 20 Average Temperature 16 | . 21 5 Received Heat Transfer 280 | . 120 160 Siege Activations . | . . . Martial Activations . | . . . Shielding Activations . | . . . Robots Disrupted . | . . . Combat Hostiles . | . . . Robots Corrupted . | . . . Combat Hostiles . | . . . Parts Fried . | . . . Impact Corruptions . | . . . Robots Melted . | . . . Combat Hostiles . | . . . Parts Melted . | . . . Heat Transferred . | . . . Parts Sabotaged . | . . . Parts Stolen . | . . . Parts Stripped . | . . . Power Chain Reactions . | . . . Alert | -11 -10 -10 ------- Run | Yrd Mat Min Maximum Alert Level . | . . . Low Security (%) 100 | 100 100 100 Level 1 . | . . . Level 2 . | . . . Level 3 . | . . . Level 4 . | . . . Level 5 . | . . . High Security . | . . . Max Security . | . . . Peak Influence 75 | . 75 24 Initial 24 | . . 24 Average 13 | . 26 4 Influence Increases 133 | . 133 . Destroy 0b10 Robot/C 60 | . 60 . Destroy 0b10 Robot/NC 5 | . 5 . Destroy Leader 12 | . 12 . Successful Hack 41 | . 41 . Lose Combat Pursuer 15 | . 15 . Influence Decreases 133 | . 71 62 Entered New Map 38 | . . 38 Time Decay 85 | . 61 24 Lost Ally 10 | . 10 . Squads Dispatched . | . . . Investigation . | . . . Extermination . | . . . Reinforcement . | . . . Assault . | . . . Garrison . | . . . Intercept . | . . . Searches Triggered . | . . . Construction Impeded . | . . . Haulers Reinforced . | . . . Active Scanning Responses . | . . . Cargo Convoy Interrupts . | . . . Stealth | -11 -10 -10 --------- Run | Yrd Mat Min Distress Signals . | . . . Communications Jammed . | . . . Distress Signals . | . . . Times Spotted 26 | . 7 19 Peak Tracking Total 11 | . 3 11 Tactical Retreats 4 | . 1 3 Traps | -11 -10 -10 ------- Run | Yrd Mat Min Traps Triggered . | . . . Indirectly . | . . . Trap Hack Attempts . | . . . Triggered . | . . . Disarmed . | . . . Reprogrammed . | . . . Reused . | . . . Traps Extracted . | . . . Installed . | . . . Triggered . | . . . Machines | -11 -10 -10 ---------- Run | Yrd Mat Min Machines Disabled . | . . . Max in Single Turn . | . . . Machines Repaired . | . . . Machines Dismantled . | . . . Machines Sabotaged . | . . . Overloaded Fab Kills . | . . . Hacking | -11 -10 -10 --------- Run | Yrd Mat Min Machines Accessed 2 | . 2 . Terminals 2 | . 2 . Fabricators . | . . . Repair Stations . | . . . Recycling Units . | . . . Scanalyzers . | . . . Garrison Access . | . . . Total Hacks 4 | . 4 . Successful 4 | . 4 . Failed . | . . . Catastrophic . | . . . Database Lockouts . | . . . Manual 1 | . 1 . Terminals 4 | . 4 . Fabricators . | . . . Repair Stations . | . . . Recycling Units . | . . . Scanalyzers . | . . . Garrison Access . | . . . Terminal Hacks 3 | . 3 . Registered Components 1 | . 1 . Registered Prototypes 1 | . 1 . Zone Layout 1 | . 1 . Fabricator Hacks . | . . . Repair Station Hacks . | . . . Recycling Unit Hacks . | . . . Scanalyzer . | . . . Garrison Access Hacks . | . . . Unauthorized Hacks 1 | . 1 . Terminals 1 | . 1 . Assimilate 1 | . 1 . Fabricators . | . . . Repair Stations . | . . . Recycling Units . | . . . Scanalyzers . | . . . Garrison Access . | . . . Data Cores Recovered . | . . . Used . | . . . Hacking Detections 2 | . 2 . Full Trace Events . | . . . Feedback Events . | . . . Feedback Blocked . | . . . Robot Schematics Acquired . | . . . Robots Built . | . . . Authchips . | . . . Time . | . . . Total Robot Build Rating . | . . . Part Schematics Acquired . | . . . Parts Built . | . . . Authchips . | . . . Time . | . . . Total Part Build Rating . | . . . Part Studies Acquired . | . . . Parts Repaired . | . . . Time . | . . . Parts Recycled . | . . . Recycled Matter . | . . . Retrieved Matter . | . . . Retrieved Components . | . . . Parts Scanalyzed . | . . . Part Schematics Acquired . | . . . Parts Damaged . | . . . Bothacking | -11 -10 -10 ------------ Run | Yrd Mat Min Used RIF Installer . | . . . Robots Hacked . | . . . Non-combat . | . . . Combat . | . . . Robot Hacks Applied . | . . . Relay Couplers Released . | . . . Fabnet Peak Effective % . | . . . Robots Rewired . | . . . Allies Hacked . | . . . Hacks Repelled . | . . . Allies | -11 -10 -10 -------- Run | Yrd Mat Min Total Allies 1 | . 1 . Largest Group 1 | . 1 . Highest-Rated Group 10 | . 10 . Highest-Rated Ally 10 | . 10 . Total Orders . | . . . Ally Attacks . | . . . Total Damage . | . . . Kills . | . . . Allies Corrupted . | . . . Allies Melted . | . . . Intel | -11 -10 -10 ------- Run | Yrd Mat Min Active Infowar (turns) . | . . . Robot Analysis Total . | . . . Derelict Logs Recovered . | . . . Drone Launches . | . . . Drone Recoveries . | . . . Exploration | -11 -10 -10 ------------- Run | Yrd Mat Min Turns Passed 464 | 63 198 203 Spaces Moved 308 | 50 108 150 Core 9 | 9 . . Treads . | . . . Legs 299 | 41 108 150 Wheels . | . . . Hover . | . . . Flight . | . . . Fastest Speed 50 | 50 120 120 Average Speed 117 | 107 120 120 Slowest Speed 120 | 120 120 120 Overloaded Moves . | . . . Propulsion Burnouts . | . . . Robots Hopped . | . . . Potential Cave-ins . | . . . Cave-ins Triggered . | . . . Exploration Rate (%) 26 | 4 26 49 Regions Visited 2 Branch Regions 1 Pre-discovered Areas . | . . . Known Exits Taken . | . . . Unknown Exits Taken 2 | 1 1 . Scrap Searched 2 | . . 2 Spaces Dug . | . . . Terrain Destroyed . | . . . Melee . | . . . Projectile . | . . . AOE . | . . . Terrain Rammed . | . . . Walls Destroyed . | . . . Machines Disabled . | . . . Actions | -11 -10 -10 --------- Run | Yrd Mat Min Total 366 | 56 143 167 Wait 20 | . 11 9 Move 306 | 49 107 150 Hop . | . . . Pick Up 3 | 1 2 . Fast Attach 7 | 6 . 1 Attach 1 | . . 1 Detach . | . . . Swap 4 | . 3 1 Drop 2 | . 2 . Fire 21 | . 18 3 Melee . | . . . Ram . | . . . Kick 2 | . . 2 Crush . | . . . Escape Stasis . | . . . Rewire . | . . . Trap . | . . . Miscellaneous . | . . . Route ------- -11/Scrapyard -10/Materials -10/Mines History --------- Turn | Location | Event 3 | -11/Scrapyard | Discovered new exit (range 15) 64 | -11/Scrapyard | Entered Materials 222 | -10/Materials | Discovered new exit (range 8) 262 | -10/Materials | Entered Mines 317 | -10/Mines | Build established: Mutant 320 | -10/Mines | Assembled infested the area 325 | -10/Mines | Assisted by a Guerilla fighting off Assembled 411 | -10/Mines | Core integrity fell below 50% 447 | -10/Mines | Core integrity fell below 20% 449 | -10/Mines | Received a Rocket Launcher from a helpful Derelict 459 | -10/Mines | Lost 4 parts (1n1u2w) 465 | -10/Mines | Destroyed by as-23494 with Assembled Blade Last Messages --------------- think you need a mining laser when you travel the depths." 00445_ NA-GGH(g): "They are crazy." 00446_ NA-GGH(g): "Everyone knows a good old rocket launcher goes a long way." 00447_ NA-GGH(g): "Need to get rid of a swarm? Done. Need a big hole in the wall? Done." 00447_ as-43439 destroyed. 00447_ NA-GGH(g) knocked back. 00448_ NA-GGH(g): "Need a small hole in the wall? Leave that to the mining laser wimps, I say!" 00449_ NA-GGH(g): "Would you like a rocket launcher? I know I would if I were you, so I'm going to lend you mine." 00449_ NA-GGH(g) slips back into the shadows. 00456_ System corrupted: Matter fused (-5). 00456_ as-02703 destroyed. 00460_ Acquired 5 matter. 00464_ Aluminum Leg destroyed. Map ----- +----------------------------------------------------+ | #?# #?# #??## #??????????????????????? | | ## #?# #???#### #??????????????????????? | | ## #?# #??????##### ###??????????????????????? | | ### ??# #??????????# #????????????????????????? | | #?? ??# #???????#### #????????????????????????? | | ##?? ?? #???????# #????????????????????????? | | ##???#??# #???????# ####????????????????????????? | | ????????# #???????# #???????????????????????????? | | ???????## #???????# #???????????????????????????? | | ??????## #???????# #???????????????????????????? | | ??????# #???????# #???????????????????????????? | | ?????## ????????# #???????????????????????????? | | #????# ????????# #???????????????????????????? | | # ??## ????????# #???????????????????????????? | | ## ?????#### #???????????????????????????? | | ?????# #???????????????????????????? | | ?????# ####???????????????????????????? | | ? #?????# #??????????????????????????????? | | ?????# ####### #??????????????????????????????? | | ???????# #??????????????????????????????? | | ???????# #########??????????????????????????????? | | ???????# %#??????????????????????????????????????? | | ???????#%%#??????????????????????????????????????? | | ???????#][#??????????????????????????????????????? | | ??????## #?????????##############???????????????? | | ??????# #?????????#*a=!@a=!!%==!$ #???????????? | | ??????# ##????????#a############???????????????? | | ??????## ##########!#??????????????????????????? | | ???????# %% #??????????????????????????? | | ???????# #??????????????????????????? | | ???????# ] #########??????????????????????????? | | ???????# ##??????????????????????????????????? | | ???????## ##???????????????????????????????????? | | ????????#####????????????????????????????????????? | | ?????????????????????????????????????????????????? | | ?????????????????????????????????????????????????? | | | | | | | | | | | | | | | | | | | | | | | | | | | | | +----------------------------------------------------+ Best States ------------- Heat Dissipation 25 Energy Generation 10 Energy Capacity 250 Matter Stores 300 Matter Capacity 300 Sight Range 16 Terrain Scan Density 10 Propulsion Shielding 33 Evasion (%) 55 Item Schematics ----------------- None Robot Schematics ------------------ None Fabricated ------------ Nothing Repaired ---------- Nothing Studied --------- None Alien Tech Used ----------------- None Achievements -------------- None Challenges ------------ None Game ------ Seed HellfireFortressCapacitor Manual? 0 Play Time 00:05:47 Cumulative 141.7 hours Start 2025.12.09 @ 15:35:38 End 2025.12.09 @ 16:17:00 Sessions 1 Manual Loads 0 Difficulty Rogue Special Mode None Game No. 115 Rogue 115 Adventurer 0 Explorer 0 Win Type - Total 1 Types 1/0/0/0/0/0/0/0/0/0 Lore% 65 Gallery% 66 Achievement% 55 Wizard Run 0 Options --------- Layout 1 ASCII 0 Keyboard 1 Movement Vi Keybinds 0 Fullscreen 1 Font 24/Terminus Map View 50x35 Zoom Use 0% Tactical HUD 1 Map Filters NONE Filters NONE Steam 1 RUN: 19d19a72-b436-44c6-88e6-2a0b9e6a5f9d